fUST/lending_fUST_20260330
["ID","MTS","AMOUNT","RATE_DAILY","PERIOD"]
[419092550,1774863057412,-2836.716383,0.00027444,7]
[419092551,1774863057421,-2836.716383,0.00027444,7]
[419092552,1774863057431,-195.788656,0.00027444,2]
[419092553,1774863057440,-195.788656,0.00027444,2]
[419092554,1774863057450,-195.788656,0.00027444,2]
[419092555,1774863057459,-195.788656,0.00027444,2]
[419092556,1774863057470,-385.188118,0.00027444,2]
[419092557,1774863057480,-385.188118,0.00027444,2]
[419092558,1774863057490,-385.188118,0.00027444,2]
[419092559,1774863057499,-385.188118,0.00027444,2]
[419092560,1774863057509,-344.995268,0.00027444,7]
[419092561,1774863057519,-344.995268,0.00027444,7]
[419092562,1774863057528,-171.94997,0.00027444,7]
[419092563,1774863057537,-344.995268,0.00027444,7]
[419092564,1774863057546,-442.02743,0.00027444,7]
[419092565,1774863057556,-171.94997,0.00027444,7]
[419092566,1774863057565,-344.995268,0.00027444,7]
[419092567,1774863057574,-442.02743,0.00027444,7]
[419092568,1774863057583,-171.94997,0.00027444,7]
[419092569,1774863057593,-442.02743,0.00027444,7]
[419092570,1774863057602,-171.94997,0.00027444,7]
[419092571,1774863057611,-442.02743,0.00027444,7]
[419092572,1774863057620,-334.07276,0.00027444,7]
[419092573,1774863057629,-334.07276,0.00027444,7]
[419092574,1774863057638,-334.07276,0.00027444,7]
[419092575,1774863057648,-334.07276,0.00027444,7]
[419092576,1774863057657,-182.089199,0.00027444,7]
[419092577,1774863057666,-151.0,0.00027444,7]
[419092578,1774863057675,-151.0,0.00027444,7]
[419092579,1774863057684,-151.0,0.00027444,7]
[419092580,1774863057694,-151.0,0.00027444,7]
[419092581,1774863057704,-2792.842923,0.00027444,7]
[419092582,1774863057713,-2792.842923,0.00027444,7]
[419092583,1774863057722,-2792.842923,0.00027444,7]
[419092584,1774863057731,-2792.842923,0.00027444,7]
[419092585,1774863057742,-850.220433,0.00027444,7]
[419092586,1774863057752,-964.422525,0.00027444,7]
[419092587,1774863057762,-334.853446,0.00027444,7]
[419092588,1774863057773,-964.422525,0.00027444,7]
[419092589,1774863057784,-334.853446,0.00027444,7]
[419092590,1774863057793,-964.422525,0.00027444,7]
[419092591,1774863057802,-334.853446,0.00027444,7]
[419092592,1774863057811,-964.422525,0.00027444,7]
[419092593,1774863057821,-334.853446,0.00027444,7]
[419092594,1774863057830,-46278.91094916,0.000275,2]
[419092595,1774863057839,-1051.80362317,0.00027521,2]
[419092596,1774863057848,-887.50079312,0.00027533,60]
[419092597,1774863057857,-887.50079312,0.00027533,60]
[419092598,1774863057866,-887.50079311,0.00027533,60]
[419092599,1774863057875,-887.50079311,0.00027533,60]
[419092600,1774863057885,-887.50079311,0.00027533,60]
[419092601,1774863057895,-887.50079311,0.00027533,60]
[419092602,1774863057905,-887.50079311,0.00027533,60]
[419092603,1774863057918,-887.50079311,0.00027533,60]
[419092604,1774863057927,-887.50079311,0.00027533,60]
[419092605,1774863057937,-887.50079311,0.00027533,60]
[419092606,1774863057946,-887.50079311,0.00027533,60]
[419092607,1774863057956,-887.50079311,0.00027533,60]
[419092608,1774863057966,-887.50079311,0.00027533,60]
[419092609,1774863057975,-2000.0,0.00027665,2]
[419092610,1774863057985,-2000.0,0.00027665,2]
[419092611,1774863057995,-2000.0,0.00027665,2]
[419092612,1774863058005,-2000.0,0.00027665,2]
[419092613,1774863058014,-2000.0,0.00027665,2]
[419092614,1774863058024,-2000.0,0.00027665,2]
[419092615,1774863058033,-2000.0,0.00027665,2]
[419092616,1774863058043,-2000.0,0.00027665,2]
[419092617,1774863058053,-2000.0,0.00027665,2]
[419092618,1774863058063,-2000.0,0.00027665,2]
[419092619,1774863058073,-1950.0,0.00027665,2]
[419092620,1774863058083,-1950.0,0.00027665,2]
[419092621,1774863058092,-1950.0,0.00027665,2]
[419092622,1774863058102,-1950.0,0.00027665,2]
[419092623,1774863058111,-1950.0,0.00027665,2]
[419092624,1774863058121,-1950.0,0.00027665,2]
[419092625,1774863058131,-1950.0,0.00027665,2]
[419092626,1774863058140,-1950.0,0.00027665,2]
[419092627,1774863058150,-1950.0,0.00027665,2]
[419092628,1774863058161,-1686.0,0.00027665,2]
[419092629,1774863058171,-887.50079312,0.0002767,60]
[419092630,1774863058185,-887.50079312,0.0002767,60]
[419092631,1774863058195,-887.50079311,0.0002767,60]
[419092632,1774863058205,-887.50079311,0.0002767,60]
[419092633,1774863058214,-887.50079311,0.0002767,60]
[419092634,1774863058223,-887.50079311,0.0002767,60]
[419092635,1774863058232,-887.50079311,0.0002767,60]
[419092636,1774863058243,-887.50079311,0.0002767,60]
[419092637,1774863058253,-887.50079311,0.0002767,60]
[419092638,1774863058262,-887.50079311,0.0002767,60]
[419092639,1774863058271,-887.50079311,0.0002767,60]
[419092640,1774863058281,-887.50079311,0.0002767,60]
[419092641,1774863058291,-887.50079311,0.0002767,60]
[419092642,1774863058300,-627.1,0.00027671,9]
[419092643,1774863058309,-500.0,0.00027671,7]
[419092644,1774863058318,-500.0,0.00027671,9]
[419092645,1774863058328,-1000.0,0.00027671,2]
[419092646,1774863058337,-1000.0,0.00027671,2]
[419092647,1774863058346,-177.55488323,0.00027671,9]
[419092648,1774863058356,-500.0,0.00027671,9]
[419092649,1774863058365,-508.7,0.00027671,9]
[419092650,1774863058375,-476.41094021,0.00027671,7]
[419092651,1774863058384,-839.98,0.00027671,9]
[419092652,1774863058394,-1035.51,0.00027671,9]
[419092653,1774863058404,-500.0,0.00027671,9]
[419092654,1774863058413,-714.85,0.00027671,9]
[419092655,1774863058423,-701.0,0.00027671,9]
[419092656,1774863058433,-500.0,0.00027671,9]
[419092657,1774863058442,-238.43594406,0.00027671,9]
[419092658,1774863058452,-2000.0,0.0002772,2]
[419092659,1774863058462,-2000.0,0.0002772,2]
[419092660,1774863058471,-2000.0,0.0002772,2]
[419092661,1774863058481,-2000.0,0.0002772,2]
[419092662,1774863058491,-2000.0,0.0002772,2]
[419092663,1774863058500,-2000.0,0.0002772,2]
[419092664,1774863058510,-2000.0,0.0002772,2]
[419092665,1774863058519,-2000.0,0.0002772,2]
[419092666,1774863058528,-2000.0,0.0002772,2]
[419092667,1774863058537,-2000.0,0.0002772,2]
[419092668,1774863058547,-1000.0,0.00027777,5]
[419092669,1774863058557,-1500.0,0.000279,2]
[419092670,1774863058567,-237.1323506,0.0002792,2]
[419092671,1774863058653,-2000.0,0.00027937,2]
[419092672,1774863058664,-2000.0,0.00027937,2]
[419092673,1774863058673,-2000.0,0.00027937,2]
[419092674,1774863058684,-2000.0,0.00027937,2]
[419092675,1774863058693,-2000.0,0.00027937,2]
[419092676,1774863058703,-2000.0,0.00027937,2]
[419092677,1774863058712,-2000.0,0.00027937,2]
[419092678,1774863058723,-2000.0,0.00027937,2]
[419092679,1774863058732,-2000.0,0.00027937,2]
[419092680,1774863058741,-2000.0,0.00027937,2]
[419092681,1774863058751,-627.1,0.00027945,9]
[419092682,1774863058760,-500.0,0.00027945,7]
[419092683,1774863058770,-374.12337532,0.00027945,9]
[419092684,1774863058779,-1000.0,0.00027945,2]
[419092685,1774863058788,-1000.0,0.00027945,2]
[419092686,1774863058798,-500.0,0.00027945,9]
[419092687,1774863058808,-508.7,0.00027945,9]
[419092688,1774863058818,-839.98,0.00027945,9]
[419092689,1774863058828,-1035.51,0.00027945,9]
[419092690,1774863058839,-500.0,0.00027945,9]
[419092691,1774863058850,-714.85,0.00027945,9]
[419092692,1774863058859,-701.0,0.00027945,9]
[419092693,1774863058869,-500.0,0.00027945,9]
[419092694,1774863058879,-250.0,0.00027945,5]
[419092695,1774863058888,-270.83333333,0.00028,3]
[419092696,1774863058897,-270.83333333,0.00028,3]
[419092697,1774863058907,-270.83333333,0.00028,7]
[419092698,1774863058917,-1029.0,0.00028,2]
[419092699,1774863058926,-500.0,0.00028,14]
[419092700,1774863058936,-324.8606328,0.0002806,2]
[419092701,1774863058945,-151.0,0.0002806,2]
[419092702,1774863058955,-455.0909562,0.0002806,2]
[419092703,1774863058965,-314.91937151,0.0002811,27]
[419092704,1774863058975,-627.1,0.00028219,9]
[419092705,1774863058984,-562.11735319,0.00028219,7]
[419092706,1774863058995,-827.10326544,0.00028219,2]
[419092707,1774863059005,-1000.0,0.00028219,2]
[419092708,1774863059014,-500.0,0.00028219,9]
[419092709,1774863059024,-508.7,0.00028219,9]
[419092710,1774863059033,-839.98,0.00028219,9]
[419092711,1774863059043,-1035.51,0.00028219,9]
[419092712,1774863059053,-500.0,0.00028219,9]
[419092713,1774863059063,-714.85,0.00028219,9]
[419092714,1774863059072,-701.0,0.00028219,9]
[419092715,1774863059082,-500.0,0.00028219,9]
[419092716,1774863059091,-451.0,0.00028219,2]
[419092717,1774863059100,-251.39116327,0.00028316,30]
[419092718,1774863059109,-2000.0,0.00028472,2]
[419092719,1774863059119,-2000.0,0.00028472,2]
[419092720,1774863059128,-2000.0,0.00028472,2]
[419092721,1774863059137,-2000.0,0.00028472,2]
[419092722,1774863059146,-2000.0,0.00028472,2]
[419092723,1774863059155,-2000.0,0.00028472,2]
[419092724,1774863059166,-2000.0,0.00028472,2]
[419092725,1774863059175,-2000.0,0.00028472,2]
[419092726,1774863059184,-2000.0,0.00028472,2]
[419092727,1774863059193,-1750.0,0.00028472,2]
[419092728,1774863059202,-627.1,0.00028493,9]
[419092729,1774863059212,-1000.0,0.00028493,2]
[419092730,1774863059222,-500.0,0.00028493,9]
[419092731,1774863059231,-508.7,0.00028493,9]
[419092732,1774863059241,-839.98,0.00028493,9]
[419092733,1774863059250,-1035.51,0.00028493,9]
[419092734,1774863059260,-500.0,0.00028493,9]
[419092735,1774863059271,-714.85,0.00028493,9]
[419092736,1774863059281,-701.0,0.00028493,9]
[419092737,1774863059290,-500.0,0.00028493,9]
[419092738,1774863059300,-350.0,0.00028493,5]
[419092739,1774863059310,-500.0,0.000285,14]
[419092740,1774863059320,-343.51085578,0.000285,120]
[419092741,1774863059330,-202.78232655,0.00028535,30]
[419092742,1774863059339,-240.0,0.00028705,30]
[419092743,1774863059348,-162.0,0.00028705,30]
[419092744,1774863059357,-185.0,0.00028705,30]
[419092745,1774863059367,-152.0,0.00028705,30]
[419092746,1774863059376,-152.0,0.00028706,30]
[419092747,1774863059386,-25047.53725177,0.0002876,2]
[419092748,1774863059395,-221.95307905,0.0002876,120]
[419092749,1774863059404,-627.1,0.00028767,9]
[419092750,1774863059414,-1000.0,0.00028767,2]
[419092751,1774863059424,-500.0,0.00028767,9]
[419092752,1774863059434,-508.7,0.00028767,9]
[419092753,1774863059443,-839.98,0.00028767,9]
[419092754,1774863059453,-1035.51,0.00028767,9]
[419092755,1774863059462,-500.0,0.00028767,9]
[419092756,1774863059472,-714.85,0.00028767,9]
[419092757,1774863059481,-701.0,0.00028767,9]
[419092758,1774863059491,-500.0,0.00028767,9]
[419092759,1774863059502,-451.0,0.00028767,3]
[419092760,1774863059512,-174.43926867,0.000288,7]
[419092761,1774863059522,-202.78232655,0.00028809,30]
[419092762,1774863059531,-324.8606328,0.00028881,2]
[419092763,1774863059541,-151.0,0.00028881,2]
[419092764,1774863059550,-189.7950361,0.00028881,2]
[419092765,1774863059560,-1500.0,0.000289,2]
[419092766,1774863059569,-228.0,0.000289,2]
[419092767,1774863059578,-896.83793022,0.00029,2]
[419092768,1774863059588,-500.0,0.00029,14]
[419092769,1774863059597,-1029.0,0.00029,2]
[419092770,1774863059606,-166.157,0.00029036,21]
[419092771,1774863059615,-627.1,0.00029041,9]
[419092772,1774863059625,-1000.0,0.00029041,2]
[419092773,1774863059634,-257.55616366,0.00029041,9]
[419092774,1774863059644,-508.7,0.00029041,9]
[419092775,1774863059654,-839.98,0.00029041,9]
[419092776,1774863059664,-1035.51,0.00029041,9]
[419092777,1774863059672,-500.0,0.00029041,9]
[419092778,1774863059682,-714.85,0.00029041,9]
[419092779,1774863059691,-701.0,0.00029041,9]
[419092780,1774863059701,-500.0,0.00029041,9]
[419092781,1774863059710,-450.0,0.00029041,5]
[419092782,1774863059719,-1444.0,0.00029041,120]
[419092783,1774863059729,-2249.94783806,0.00029107,2]
[419092784,1774863059739,-168.98527213,0.00029138,30]
[419092785,1774863059748,-627.1,0.00029315,9]
[419092786,1774863059757,-743.88666278,0.00029315,2]
[419092787,1774863059766,-508.7,0.00029315,9]
[419092788,1774863059775,-839.98,0.00029315,9]
[419092789,1774863059785,-1035.51,0.00029315,9]
[419092790,1774863059795,-500.0,0.00029315,9]
[419092791,1774863059806,-714.85,0.00029315,9]
[419092792,1774863059815,-701.0,0.00029315,9]
[419092793,1774863059826,-500.0,0.00029315,9]
[419092794,1774863059836,-451.0,0.00029315,4]
[419092795,1774863059845,-1637.12,0.000295,2]
[419092796,1774863059855,-179.76523012,0.000295,3]
[419092797,1774863059864,-500.0,0.000295,14]
[419092798,1774863059873,-627.1,0.00029589,9]
[419092799,1774863059883,-508.7,0.00029589,9]
[419092800,1774863059894,-839.98,0.00029589,9]
[419092801,1774863059903,-1035.51,0.00029589,9]
[419092802,1774863059913,-500.0,0.00029589,9]
[419092803,1774863059922,-714.85,0.00029589,9]
[419092804,1774863059931,-701.0,0.00029589,9]
[419092805,1774863059941,-500.0,0.00029589,9]
[419092806,1774863059951,-550.0,0.00029589,5]
[419092807,1774863059961,-240.0,0.00029705,30]
[419092808,1774863059971,-166.25727827,0.00029705,30]
[419092809,1774863059983,-185.0,0.00029705,30]
[419092810,1774863059993,-152.0,0.00029705,30]
[419092811,1774863060002,-152.0,0.00029706,30]
[419092812,1774863060012,-218.6814435,0.0002971,2]
[419092813,1774863060022,-627.1,0.00029863,9]
[419092814,1774863060032,-508.7,0.00029863,9]
[419092815,1774863060042,-839.98,0.00029863,9]
[419092816,1774863060051,-1035.51,0.00029863,9]
[419092817,1774863060062,-530.88122643,0.00029863,9]
[419092818,1774863060074,-714.85,0.00029863,9]
[419092819,1774863060084,-701.0,0.00029863,9]
[419092820,1774863060094,-500.0,0.00029863,9]
[419092821,1774863060104,-451.0,0.00029863,5]
[419092822,1774863060114,-1000.0,0.0002988,30]
[419092823,1774863060123,-1000.0,0.0002988,30]
[419092824,1774863060132,-579.0,0.0002988,30]
[419092825,1774863060141,-1500.0,0.000299,2]
[419092826,1774863060150,-5759.68675883,0.0003,2]
[419092827,1774863060160,-500.0,0.0003,2]
[419092828,1774863060170,-271.49535675,0.0003,2]
[419092829,1774863060179,-25000.0,0.0003,4]
[419092830,1774863060189,-3380.0,0.0003,2]
[419092831,1774863060198,-160.35879027,0.0003,2]
[419092832,1774863060208,-500.0,0.0003,14]
[419092833,1774863060218,-150.14651822,0.0003,120]
[419092834,1774863060227,-292.45821746,0.0003,120]
[419092835,1774863060237,-165.46,0.0003,5]
[419092836,1774863060246,-520.81826809,0.0003,30]
[419092837,1774863060256,-552.3091144,0.0003,7]
[419092838,1774863060266,-500.0,0.0003,2]
[419092839,1774863060275,-1029.0,0.0003,7]
[419092840,1774863060285,-506.55949894,0.0003013,2]
[419092841,1774863060294,-150.0,0.0003013,2]
[419092842,1774863060303,-879.56114596,0.0003013,120]
[419092843,1774863060313,-627.1,0.00030136,9]
[419092844,1774863060323,-508.7,0.00030136,9]
[419092845,1774863060333,-839.98,0.00030136,9]
[419092846,1774863060342,-1035.51,0.00030136,9]
[419092847,1774863060352,-714.85,0.00030136,9]
[419092848,1774863060362,-701.0,0.00030136,9]
[419092849,1774863060371,-500.0,0.00030136,9]
[419092850,1774863060381,-650.0,0.00030137,5]
[419092851,1774863060454,-184.0,0.00030184,2]
[419092852,1774863060471,-1000.0,0.00030274,2]
[419092853,1774863060480,-197.22,0.00030388,2]
[419092854,1774863060489,-627.1,0.0003041,9]
[419092855,1774863060499,-508.7,0.0003041,9]
[419092856,1774863060508,-839.98,0.0003041,9]
[419092857,1774863060518,-1035.51,0.0003041,9]
[419092858,1774863060527,-714.85,0.0003041,9]
[419092859,1774863060537,-701.0,0.0003041,9]
[419092860,1774863060547,-500.0,0.0003041,9]
[419092861,1774863060555,-451.0,0.0003041,6]
[419092862,1774863060564,-455.0679627,0.00030529,2]
[419092863,1774863060574,-324.8606328,0.00030529,2]
[419092864,1774863060583,-455.0909562,0.00030534,2]
[419092865,1774863060593,-573.3783977,0.00030534,2]
[419092866,1774863060603,-455.0909562,0.00030534,2]
[419092867,1774863060613,-1500.0,0.00030548,2]
[419092868,1774863060624,-4101.10337453,0.00030614,2]
[419092869,1774863060635,-627.1,0.00030684,9]
[419092870,1774863060644,-508.7,0.00030684,9]
[419092871,1774863060654,-839.98,0.00030684,9]
[419092872,1774863060663,-1035.51,0.00030684,9]
[419092873,1774863060673,-714.85,0.00030684,9]
[419092874,1774863060683,-701.0,0.00030684,9]
[419092875,1774863060693,-500.0,0.00030684,9]
[419092876,1774863060702,-232.51532941,0.00030685,2]
[419092877,1774863060711,-750.0,0.00030685,5]
[419092878,1774863060721,-240.0,0.00030705,30]
[419092879,1774863060731,-185.0,0.00030705,30]
[419092880,1774863060740,-152.0,0.00030705,30]
[419092881,1774863060750,-152.0,0.00030706,30]
[419092882,1774863060759,-2000.0,0.00030822,2]
[419092883,1774863060770,-627.24268557,0.00030958,9]
[419092884,1774863060780,-508.72436471,0.00030958,9]
[419092885,1774863060790,-840.04,0.00030958,9]
[419092886,1774863060799,-1035.72352841,0.00030958,9]
[419092887,1774863060809,-714.89164244,0.00030958,9]
[419092888,1774863060819,-701.20535696,0.00030958,9]
[419092889,1774863060828,-483.47349754,0.00030958,9]
[419092890,1774863060838,-308.09576608,0.0003099,2]
[419092891,1774863060847,-488.96828261,0.00031,2]
[419092892,1774863060856,-397.11854921,0.00031,120]
[419092893,1774863060866,-2500.0,0.00031096,2]
[419092894,1774863060876,-22381759.3281,0.00031211,30]
[419092895,1774863060886,-850.0,0.00031233,5]
[419092896,1774863060895,-3000.0,0.0003137,2]
[419092897,1774863060905,-3500.0,0.00031644,2]
[419092898,1774863060917,-240.0,0.00031705,30]
[419092899,1774863060926,-185.0,0.00031705,30]
[419092900,1774863060936,-152.0,0.00031705,30]
[419092901,1774863060945,-152.0,0.00031706,30]
[419092902,1774863060955,-151.0,0.00031709,7]
[419092903,1774863060964,-151.0,0.00031709,7]
[419092904,1774863060973,-2836.716383,0.00031711,7]
[419092905,1774863060983,-2836.716383,0.00031711,7]
[419092906,1774863060992,-2836.716383,0.00031711,7]
[419092907,1774863061002,-2836.716383,0.00031711,7]
[419092908,1774863061011,-195.788656,0.00031711,2]
[419092909,1774863061020,-195.788656,0.00031711,2]
[419092910,1774863061029,-195.788656,0.00031711,2]
[419092911,1774863061038,-195.788656,0.00031711,2]
[419092912,1774863061047,-385.188118,0.00031711,2]
[419092913,1774863061056,-385.188118,0.00031711,2]
[419092914,1774863061066,-385.188118,0.00031711,2]
[419092915,1774863061075,-385.188118,0.00031711,2]
[419092916,1774863061084,-344.995268,0.00031711,7]
[419092917,1774863061093,-344.995268,0.00031711,7]
[419092918,1774863061103,-171.94997,0.00031711,7]
[419092919,1774863061112,-344.995268,0.00031711,7]
[419092920,1774863061121,-442.02743,0.00031711,7]
[419092921,1774863061130,-171.94997,0.00031711,7]
[419092922,1774863061139,-344.995268,0.00031711,7]
[419092923,1774863061148,-442.02743,0.00031711,7]
[419092924,1774863061157,-171.94997,0.00031711,7]
[419092925,1774863061168,-442.02743,0.00031711,7]
[419092926,1774863061177,-171.94997,0.00031711,7]
[419092927,1774863061186,-442.02743,0.00031711,7]
[419092928,1774863061195,-334.07276,0.00031711,7]
[419092929,1774863061204,-334.07276,0.00031711,7]
[419092930,1774863061213,-334.07276,0.00031711,7]
[419092931,1774863061223,-334.07276,0.00031711,7]
[419092932,1774863061232,-151.0,0.00031711,7]
[419092933,1774863061241,-151.0,0.00031711,7]
[419092934,1774863061252,-151.0,0.00031711,7]
[419092935,1774863061261,-195.777454,0.00031711,7]
[419092936,1774863061270,-2792.842923,0.00031711,7]
[419092937,1774863061279,-2792.842923,0.00031711,7]
[419092938,1774863061291,-2792.842923,0.00031711,7]
[419092939,1774863061301,-2792.842923,0.00031711,7]
[419092940,1774863061312,-964.422525,0.00031711,7]
[419092941,1774863061322,-334.853446,0.00031711,7]
[419092942,1774863061332,-964.422525,0.00031711,7]
[419092943,1774863061343,-334.853446,0.00031711,7]
[419092944,1774863061353,-964.422525,0.00031711,7]
[419092945,1774863061363,-334.853446,0.00031711,7]
[419092946,1774863061373,-964.422525,0.00031711,7]
[419092947,1774863061383,-334.853446,0.00031711,7]
[419092948,1774863061392,-1588867.35133175,0.00031711,2]
[419092949,1774863061478,-7908.18666194,0.00031711,2]
[419092950,1774863061494,-77719.16443128,0.00031711,2]
[419092951,1774863107718,-1003.20473947,9.505e-05,2]
[419092952,1774863107743,-650.11769673,9.505e-05,2]
[419092968,1774864187054,85.58796,2.018e-05,2]
[419092969,1774864187082,500.0,2.018e-05,2]
[419092970,1774864187108,500.0,2.018e-05,2]
[419092971,1774864187134,500.0,2.018e-05,2]
[419092972,1774864187161,500.0,2.018e-05,2]
[419092973,1774864187189,500.0,2.018e-05,2]
[419092974,1774864187216,500.0,2.018e-05,2]
[419092975,1774864187256,500.0,2.018e-05,2]
[419092976,1774864187285,500.0,2.018e-05,2]
[419092977,1774864225913,5000.0,2.017e-05,2]
[419093047,1774864233638,-5914.41204,2.018e-05,2]
[419093048,1774864233648,-151.0,0.000108,2]
[419093049,1774864233658,-151.0,0.00011547,2]
[419093050,1774864233668,-1000.0,0.00013699,2]
[419093051,1774864233678,-5000.0,0.00016438,2]
[419093052,1774864233687,-974.14524727,0.00016438,15]
[419093053,1774864233697,-160.0,0.00022,2]
[419093054,1774864233706,-151.0257013,0.00022243,2]
[419093055,1774864233715,-270.83333333,0.00023,2]
[419093056,1774864233724,-1000.0,0.00023588,30]
[419093057,1774864233734,-1547.0,0.00023956,10]
[419093058,1774864233743,-889.0,0.00023956,10]
[419093059,1774864233753,-380.0,0.00025129,2]
[419093060,1774864233763,-300.01722223,0.00026274,2]
[419093061,1774864233773,-686.34,0.00027214,10]
[419093062,1774864233782,-571.95,0.00027214,10]
[419093063,1774864233792,-199.10594763,0.00027223,2]
[419093064,1774864233802,-500.0,0.00027223,2]
[419093065,1774864233812,-500.0,0.00027223,2]
[419093066,1774864233822,-500.0,0.00027223,2]
[419093067,1774864233832,-235.94124624,0.00027223,2]
[419093068,1774864233842,-500.0,0.00027223,2]
[419093069,1774864233852,-183.3600597,0.00027223,2]
[419093070,1774864233862,-500.0,0.00027223,2]
[419093071,1774864233872,-500.0,0.00027223,2]
[419093072,1774864233882,-500.0,0.00027223,2]
[419093073,1774864233901,-500.0,0.00027223,2]
[419093074,1774864233914,-500.0,0.00027223,2]
[419093075,1774864233925,-399.28403805,0.00027223,2]
[419093076,1774864233936,-500.0,0.00027223,2]
[419093077,1774864233946,-500.0,0.00027223,2]
[419093078,1774864233956,-407.95964673,0.00027223,2]
[419093079,1774864233967,-500.0,0.00027223,2]
[419093080,1774864233977,-500.0,0.00027223,2]
[419093081,1774864233987,-500.0,0.00027223,2]
[419093082,1774864233997,-500.0,0.00027223,2]
[419093083,1774864234007,-500.0,0.00027223,2]
[419093084,1774864234017,-500.0,0.00027223,2]
[419093085,1774864234027,-337.13421427,0.00027223,2]
[419093086,1774864234038,-500.0,0.00027223,2]
[419093087,1774864234049,-500.0,0.00027223,2]
[419093088,1774864234059,-500.0,0.00027223,2]
[419093089,1774864234070,-500.0,0.00027223,2]
[419093090,1774864234080,-500.0,0.00027223,2]
[419093091,1774864234090,-500.0,0.00027223,2]
[419093092,1774864234101,-500.0,0.00027223,2]
[419093093,1774864234111,-500.0,0.00027223,2]
[419093094,1774864234121,-500.0,0.00027223,2]
[419093095,1774864234131,-500.0,0.00027223,2]
[419093096,1774864234142,-281.80806369,0.00027223,2]
[419093422,1774864246696,-1908.40783422,0.00013123,2]
[419093424,1774864246706,-250.0,0.00018161,2]
[419093426,1774864246715,-476.62,0.00027214,10]
[419093427,1774864246725,-317.86983504,0.00027223,10]
[419093433,1774864814410,162.0,2.017e-05,2]
[419093434,1774864890804,1770.26202494,9.905e-05,2]
[419093464,1774865432678,-917.373854,7.449e-05,2]
[419093465,1774865432688,-5000.0,7.524e-05,2]
[419093466,1774865432698,-649.94241313,7.6e-05,2]
[419093467,1774865432709,-594.0,0.00012347,2]
[419093468,1774865432719,-1000.0,0.00013699,2]
[419093469,1774865432729,-300.0,0.0001373,2]
[419093470,1774865432738,-300.0,0.0001373,2]
[419093471,1774865432748,-300.0,0.0001373,2]
[419093472,1774865432758,-300.0,0.0001373,2]
[419093473,1774865432767,-300.0,0.0001373,2]
[419093474,1774865432777,-300.0,0.0001373,2]
[419093475,1774865432786,-78.40578145,0.0001373,2]
[419093476,1774865432799,-221.59421855,0.0001373,2]
[419093477,1774865432808,-54.76578145,0.0001373,2]
[419093478,1774865432819,-245.23421855,0.0001373,2]
[419093479,1774865432829,-300.0,0.0001373,2]
[419093480,1774865432839,-300.0,0.0001373,2]
[419093481,1774865432849,-232.85494287,0.0001373,2]
[419093482,1774865432860,-67.14505713,0.0001373,2]
[419093483,1774865432870,-300.0,0.0001373,2]
[419093484,1774865432879,-300.0,0.0001373,2]
[419093485,1774865432889,-300.0,0.0001373,2]
[419093486,1774865432899,-30.17716524,0.0001373,2]
[419093487,1774865432915,-269.82283476,0.0001373,2]
[419093488,1774865433052,-500.0,0.000147,2]
[419093489,1774865433062,-151.0,0.00014795,2]
[419093490,1774865433072,-362.68420886,0.00016314,2]
[419093491,1774865433082,-500.0,0.00016437,2]
[419093492,1774865433092,-500.0,0.00016437,2]
[419093493,1774865433102,-500.0,0.00016437,2]
[419093494,1774865433111,-4718.50991738,0.00016438,2]